[Event "Titled Tuesday Blitz October 19 2021"]
[White "Palchuk, Andrii"]
[Black "Moroni, Luca Jr"]
[WhiteFideId "14176688"]
[BlackFideId "865834"]
[WhiteElo "2322"]
[BlackElo "2491"]
[Result "1-0"]
[Round "06"]
[TimeControl "180+1"]
[Date "2021.10.19"]
[WhiteClock "0:00:08"]
[BlackClock "0:00:03"]

1. d4 {[%clk 0:02:48]}  g6 {[%clk 0:02:59]} 2. c4 {[%clk 0:02:47]}  Bg7 {[%clk 0:03:00]} 3. e4 {[%clk 0:02:47]}  d6 {[%clk 0:03:00]} 4. Nc3 {[%clk 0:02:40]}  c5 {[%clk 0:03:00]} 5. Be3 {[%clk 0:02:40]}  Qa5 {[%clk 0:02:41]} 6. Ne2 {[%clk 0:02:31]}  Nc6 {[%clk 0:02:40]} 7. f3 {[%clk 0:02:22]}  cxd4 {[%clk 0:02:37]} 8. Nxd4 {[%clk 0:02:23]}  Nxd4 {[%clk 0:02:37]} 9. Bxd4 {[%clk 0:02:23]}  Bxd4 {[%clk 0:02:38]} 10. Qxd4 {[%clk 0:02:23]}  Nf6 {[%clk 0:02:38]} 11. Be2 {[%clk 0:02:22]}  Be6 {[%clk 0:02:38]} 12. O-O {[%clk 0:02:22]}  Rc8 {[%clk 0:02:38]} 13. b3 {[%clk 0:02:12]}  O-O {[%clk 0:02:30]} 14. Rfd1 {[%clk 0:02:09]}  Nd7 {[%clk 0:02:28]} 15. Qd2 {[%clk 0:01:51]}  a6 {[%clk 0:02:20]} 16. Kh1 {[%clk 0:01:47]}  Rfd8 {[%clk 0:02:13]} 17. Rac1 {[%clk 0:01:44]}  Rb8 {[%clk 0:01:56]} 18. f4 {[%clk 0:01:37]}  Rdc8 {[%clk 0:01:44]} 19. f5 {[%clk 0:01:35]}  gxf5 {[%clk 0:01:42]} 20. Qg5+ {[%clk 0:01:35]}  Kf8 {[%clk 0:01:26]} 21. Qh6+ {[%clk 0:01:11]}  Ke8 {[%clk 0:01:26]} 22. Qxh7 {[%clk 0:01:11]}  Qe5 {[%clk 0:01:22]} 23. exf5 {[%clk 0:00:52]}  Qxf5 {[%clk 0:01:19]} 24. Qh4 {[%clk 0:00:48]}  Qf6 {[%clk 0:01:09]} 25. Qg3 {[%clk 0:00:44]}  Qg6 {[%clk 0:01:01]} 26. Qf2 {[%clk 0:00:40]}  Ne5 {[%clk 0:01:00]} 27. Rf1 {[%clk 0:00:38]}  Rc5 {[%clk 0:00:51]} 28. Na4 {[%clk 0:00:37]}  Rc6 {[%clk 0:00:48]} 29. c5 {[%clk 0:00:37]}  Rbc8 {[%clk 0:00:36]} 30. Qf4 {[%clk 0:00:35]}  Bg4 {[%clk 0:00:32]} 31. Bxg4 {[%clk 0:00:33]}  Qxg4 {[%clk 0:00:33]} 32. Qh6 {[%clk 0:00:28]}  Qg8 {[%clk 0:00:20]} 33. Qh5 {[%clk 0:00:19]}  Nd3 {[%clk 0:00:12]} 34. Rcd1 {[%clk 0:00:12]}  Nxc5 {[%clk 0:00:12]} 35. Nc3 {[%clk 0:00:11]}  Ne6 {[%clk 0:00:11]} 36. Nd5 {[%clk 0:00:11]}  Rc5 {[%clk 0:00:11]} 37. Qh4 {[%clk 0:00:11]}  Qg5 {[%clk 0:00:11]} 38. Qh8+ {[%clk 0:00:10]}  Kd7 {[%clk 0:00:11]} 39. Nb6+ {[%clk 0:00:10]}  Kc7 {[%clk 0:00:09]} 40. Nxc8 {[%clk 0:00:07]}  Rc2 {[%clk 0:00:09]} 41. Rg1 {[%clk 0:00:04]}  Nf4 {[%clk 0:00:09]} 42. Nxe7 {[%clk 0:00:04]}  Qxe7 {[%clk 0:00:08]} 43. Rc1 {[%clk 0:00:03]}  Qe4 {[%clk 0:00:05]} 44. Rxc2+ {[%clk 0:00:04]}  Qxc2 {[%clk 0:00:06]} 45. Qf6 {[%clk 0:00:03]}  Nd3 {[%clk 0:00:06]} 46. Qxf7+ {[%clk 0:00:04]}  Kb6 {[%clk 0:00:06]} 47. h3 {[%clk 0:00:04]}  Qe2 {[%clk 0:00:05]} 48. Qf3 {[%clk 0:00:03]}  Qd2 {[%clk 0:00:04]} 49. Rf1 {[%clk 0:00:03]}  a5 {[%clk 0:00:03]} 50. h4 {[%clk 0:00:03]}  a4 {[%clk 0:00:03]} 51. bxa4 {[%clk 0:00:03]}  Ka6 {[%clk 0:00:03]} 52. h5 {[%clk 0:00:03]}  Ne5 {[%clk 0:00:03]} 53. Qf4 {[%clk 0:00:03]}  Qd3 {[%clk 0:00:03]} 54. h6 {[%clk 0:00:03]}  Qg6 {[%clk 0:00:03]} 55. Kg1 {[%clk 0:00:03]}  Nd3 {[%clk 0:00:03]} 56. Qc4+ {[%clk 0:00:03]}  Ka7 {[%clk 0:00:02]} 57. Qd4+ {[%clk 0:00:03]}  Nc5 {[%clk 0:00:03]} 58. Qf6 {[%clk 0:00:01]}  Qd3 {[%clk 0:00:02]} 59. Rf3 {[%clk 0:00:01]}  Qd1+ {[%clk 0:00:02]} 60. Kh2 {[%clk 0:00:02]}  Ne4 {[%clk 0:00:02]} 61. Qf4 {[%clk 0:00:02]}  Nd2 {[%clk 0:00:02]} 62. Qe3+ {[%clk 0:00:03]}  Ka6 {[%clk 0:00:02]} 63. Rf2 {[%clk 0:00:03]}  Nf1+ {[%clk 0:00:02]} 64. Rxf1 {[%clk 0:00:04]}  Qxf1 {[%clk 0:00:03]} 65. h7 {[%clk 0:00:04]}  Qf6 {[%clk 0:00:03]} 66. Qh3 {[%clk 0:00:05]}  Qh8 {[%clk 0:00:03]} 67. Qh4 {[%clk 0:00:05]}  d5 {[%clk 0:00:03]} 68. Qe7 {[%clk 0:00:04]}  d4 {[%clk 0:00:03]} 69. Kg3 {[%clk 0:00:04]}  d3 {[%clk 0:00:03]} 70. Kf3 {[%clk 0:00:05]}  d2 {[%clk 0:00:04]} 71. Ke2 {[%clk 0:00:06]}  Qb2 {[%clk 0:00:04]} 72. Qe6+ {[%clk 0:00:06]}  Ka5 {[%clk 0:00:03]} 73. Qd5+ {[%clk 0:00:06]}  Ka6 {[%clk 0:00:03]} 74. Qd3+ {[%clk 0:00:06]}  Ka7 {[%clk 0:00:03]} 75. Qxd2 {[%clk 0:00:07]}  Qa1 {[%clk 0:00:03]} 76. Qe3+ {[%clk 0:00:07]}  Ka6 {[%clk 0:00:02]} 77. Kd3 {[%clk 0:00:07]}  Qb1+ {[%clk 0:00:02]} 78. Kd2 {[%clk 0:00:07]}  Qxa2+ {[%clk 0:00:01]} 79. Ke1 {[%clk 0:00:07]}  Qa1+ {[%clk 0:00:02]} 80. Kf2 {[%clk 0:00:07]}  Qf6+ {[%clk 0:00:02]} 81. Kg1 {[%clk 0:00:06]}  Qa1+ {[%clk 0:00:02]} 82. Kh2 {[%clk 0:00:07]}  Qg7 {[%clk 0:00:02]} 83. Qe6+ {[%clk 0:00:07]}  Ka5 {[%clk 0:00:02]} 84. Qf5+ {[%clk 0:00:05]}  Kxa4 {[%clk 0:00:01]} 85. g4 {[%clk 0:00:06]}  b5 {[%clk 0:00:01]} 86. g5 {[%clk 0:00:06]}  b4 {[%clk 0:00:02]} 87. g6 {[%clk 0:00:07]}  Qb2+ {[%clk 0:00:02]} 88. Kg3 {[%clk 0:00:07]}  Qc3+ {[%clk 0:00:03]} 89. Kg4 {[%clk 0:00:07]}  Qd4+ {[%clk 0:00:03]} 90. Qf4 {[%clk 0:00:07]}  Qd7+ {[%clk 0:00:03]} 91. Kg5 {[%clk 0:00:08]}  Qe7+ {[%clk 0:00:03]} 92. Qf6 {[%clk 0:00:08]}  Qe3+ {[%clk 0:00:03]} 93. Qf4 {[%clk 0:00:08]}  Qg1+ {[%clk 0:00:03]} 94. Kf6 {[%clk 0:00:08]}  Qa1+ {[%clk 0:00:03]} 95. Kf7 {[%clk 0:00:08]}  Qa2+ {[%clk 0:00:03]} 96. Kf8 {[%clk 0:00:08]}  Qa1 {[%clk 0:00:02]} 97. g7 {[%clk 0:00:09]}  Qc3 {[%clk 0:00:02]} 98. h8=Q {[%clk 0:00:08]}  Qc8+ {[%clk 0:00:02]} 99. Kf7 {[%clk 0:00:09]}  Qd7+ {[%clk 0:00:03]} 100. Kg6 {[%clk 0:00:09]}  Qe6+ {[%clk 0:00:03]} 101. Kg5 {[%clk 0:00:09]}  Kb3 {[%clk 0:00:03]} 102. g8=Q {[%clk 0:00:09]}  Ka3 {[%clk 0:00:02]} 103. Qxe6 {[%clk 0:00:09]}  b3 {[%clk 0:00:03]} 104. Qa1# {[%clk 0:00:08]} 1-0


[Site "https://www.chess.com"]

[Event "Titled Tuesday Blitz October 19 2021"]
[White "Papp, Levente"]
[Black "Lugovskoy, Maxim"]
[WhiteFideId "751243"]
[BlackFideId "24126454"]
[WhiteElo "2308"]
[BlackElo "2466"]
[Result "1/2-1/2"]
[Round "06"]
[TimeControl "180+1"]
[Date "2021.10.19"]
[WhiteClock "0:00:11"]
[BlackClock "0:00:04"]

1. c4 {[%clk 0:03:00]}  e6 {[%clk 0:03:00]} 2. Nf3 {[%clk 0:03:00]}  d5 {[%clk 0:03:00]} 3. g3 {[%clk 0:03:00]}  d4 {[%clk 0:02:59]} 4. Bg2 {[%clk 0:02:59]}  c5 {[%clk 0:03:00]} 5. O-O {[%clk 0:02:59]}  Nc6 {[%clk 0:02:59]} 6. e3 {[%clk 0:02:59]}  e5 {[%clk 0:03:00]} 7. exd4 {[%clk 0:02:59]}  exd4 {[%clk 0:03:00]} 8. a3 {[%clk 0:02:54]}  Nf6 {[%clk 0:02:59]} 9. Re1+ {[%clk 0:02:50]}  Be7 {[%clk 0:03:00]} 10. b4 {[%clk 0:02:45]}  O-O {[%clk 0:02:54]} 11. b5 {[%clk 0:02:44]}  Nb8 {[%clk 0:02:54]} 12. d3 {[%clk 0:02:43]}  Bg4 {[%clk 0:02:53]} 13. h3 {[%clk 0:02:42]}  Bh5 {[%clk 0:02:52]} 14. g4 {[%clk 0:02:41]}  Bg6 {[%clk 0:02:52]} 15. Ne5 {[%clk 0:02:41]}  Nbd7 {[%clk 0:02:47]} 16. Nxg6 {[%clk 0:02:39]}  hxg6 {[%clk 0:02:47]} 17. Bxb7 {[%clk 0:02:39]}  Rb8 {[%clk 0:02:46]} 18. Bg2 {[%clk 0:02:39]}  Bd6 {[%clk 0:02:43]} 19. Nd2 {[%clk 0:02:33]}  Ne5 {[%clk 0:02:41]} 20. Ne4 {[%clk 0:02:30]}  Nxe4 {[%clk 0:02:41]} 21. Bxe4 {[%clk 0:02:29]}  Qh4 {[%clk 0:02:40]} 22. Kg2 {[%clk 0:02:23]}  f5 {[%clk 0:02:40]} 23. Bd5+ {[%clk 0:02:22]}  Kh8 {[%clk 0:02:39]} 24. f4 {[%clk 0:01:51]}  Nxd3 {[%clk 0:02:09]} 25. Rf1 {[%clk 0:01:29]}  Nxc1 {[%clk 0:02:08]} 26. Rxc1 {[%clk 0:01:28]}  Rbe8 {[%clk 0:02:08]} 27. Rf3 {[%clk 0:01:04]}  Re7 {[%clk 0:01:57]} 28. Qd3 {[%clk 0:00:26]}  Rfe8 {[%clk 0:01:54]} 29. Rcf1 {[%clk 0:00:21]}  Re2+ {[%clk 0:01:54]} 30. R3f2 {[%clk 0:00:18]}  R8e3 {[%clk 0:01:55]} 31. Qxe2 {[%clk 0:00:17]}  Qg3+ {[%clk 0:01:18]} 32. Kh1 {[%clk 0:00:17]}  Rxe2 {[%clk 0:01:19]} 33. Rxe2 {[%clk 0:00:18]}  Bxf4 {[%clk 0:01:19]} 34. Rf3 {[%clk 0:00:11]}  Qh4 {[%clk 0:01:07]} 35. Rxf4 {[%clk 0:00:11]}  Qg5 {[%clk 0:00:56]} 36. Rf1 {[%clk 0:00:10]}  d3 {[%clk 0:00:55]} 37. Re8+ {[%clk 0:00:10]}  Kh7 {[%clk 0:00:54]} 38. gxf5 {[%clk 0:00:09]}  gxf5 {[%clk 0:00:25]} 39. Bg2 {[%clk 0:00:10]}  d2 {[%clk 0:00:20]} 40. Re5 {[%clk 0:00:10]}  Qg3 {[%clk 0:00:12]} 41. Rd5 {[%clk 0:00:10]}  Qe3 {[%clk 0:00:11]} 42. Bf3 {[%clk 0:00:09]}  f4 {[%clk 0:00:06]} 43. Kg2 {[%clk 0:00:08]}  g5 {[%clk 0:00:06]} 44. Rd1 {[%clk 0:00:08]}  g4 {[%clk 0:00:05]} 45. hxg4 {[%clk 0:00:08]}  Kg7 {[%clk 0:00:05]} 46. R1xd2 {[%clk 0:00:08]}  Qxa3 {[%clk 0:00:05]} 47. Rd7+ {[%clk 0:00:08]}  Kf6 {[%clk 0:00:05]} 48. R2d6+ {[%clk 0:00:08]}  Ke5 {[%clk 0:00:06]} 49. Rd5+ {[%clk 0:00:08]}  Ke6 {[%clk 0:00:06]} 50. R7d6+ {[%clk 0:00:08]}  Ke7 {[%clk 0:00:06]} 51. Rd7+ {[%clk 0:00:07]}  Ke6 {[%clk 0:00:06]} 52. Rd2 {[%clk 0:00:08]}  Qc3 {[%clk 0:00:05]} 53. R7d6+ {[%clk 0:00:08]}  Ke7 {[%clk 0:00:05]} 54. R6d5 {[%clk 0:00:08]}  Qxc4 {[%clk 0:00:05]} 55. Re2+ {[%clk 0:00:08]}  Kf6 {[%clk 0:00:04]} 56. Rf5+ {[%clk 0:00:08]}  Kg6 {[%clk 0:00:04]} 57. Rd2 {[%clk 0:00:08]}  Qc3 {[%clk 0:00:03]} 58. Rd6+ {[%clk 0:00:08]}  Kg7 {[%clk 0:00:03]} 59. Rfd5 {[%clk 0:00:09]}  Kf7 {[%clk 0:00:03]} 60. Rd7+ {[%clk 0:00:09]}  Ke6 {[%clk 0:00:03]} 61. R5d6+ {[%clk 0:00:09]}  Ke5 {[%clk 0:00:04]} 62. Rd5+ {[%clk 0:00:10]}  Ke6 {[%clk 0:00:04]} 63. R7d6+ {[%clk 0:00:10]}  Ke7 {[%clk 0:00:04]} 64. Rd7+ {[%clk 0:00:11]}  Ke6 {[%clk 0:00:04]} 1/2-1/2


[Site "https://www.chess.com"]

[Event "Titled Tuesday Blitz October 19 2021"]
[White "Piesik, Piotr"]
[Black "Sethuraman, S.P."]
[WhiteFideId "1136194"]
[BlackFideId "5021596"]
[WhiteElo "2336"]
[BlackElo "2477"]
[Result "0-1"]
[Round "06"]
[TimeControl "180+1"]
[Date "2021.10.19"]
[WhiteClock "0:01:47"]
[BlackClock "0:01:01"]

1. Nf3 {[%clk 0:03:00]}  d5 {[%clk 0:02:59]} 2. g3 {[%clk 0:03:00]}  c6 {[%clk 0:02:59]} 3. Bg2 {[%clk 0:02:58]}  Bg4 {[%clk 0:03:00]} 4. O-O {[%clk 0:02:58]}  Nd7 {[%clk 0:03:00]} 5. d3 {[%clk 0:02:58]}  e6 {[%clk 0:02:59]} 6. Nbd2 {[%clk 0:02:59]}  Bd6 {[%clk 0:02:59]} 7. e4 {[%clk 0:02:59]}  Ne7 {[%clk 0:02:59]} 8. h3 {[%clk 0:02:59]}  Bh5 {[%clk 0:02:59]} 9. Nb3 {[%clk 0:02:56]}  O-O {[%clk 0:02:56]} 10. Qe1 {[%clk 0:02:55]}  Qc7 {[%clk 0:02:45]} 11. Nh4 {[%clk 0:02:52]}  f6 {[%clk 0:02:34]} 12. f4 {[%clk 0:02:49]}  a5 {[%clk 0:02:30]} 13. a4 {[%clk 0:02:48]}  Bf7 {[%clk 0:02:27]} 14. Bd2 {[%clk 0:02:47]}  b6 {[%clk 0:02:24]} 15. Nf3 {[%clk 0:02:43]}  c5 {[%clk 0:02:19]} 16. Qe2 {[%clk 0:02:39]}  Nc6 {[%clk 0:02:13]} 17. Bc3 {[%clk 0:02:35]}  Rfe8 {[%clk 0:02:09]} 18. Rae1 {[%clk 0:02:32]}  d4 {[%clk 0:02:05]} 19. Bd2 {[%clk 0:02:31]}  e5 {[%clk 0:02:05]} 20. f5 {[%clk 0:02:28]}  c4 {[%clk 0:02:02]} 21. dxc4 {[%clk 0:02:26]}  Nb4 {[%clk 0:02:02]} 22. Bxb4 {[%clk 0:02:23]}  Bxb4 {[%clk 0:02:01]} 23. Nbd2 {[%clk 0:02:19]}  Nc5 {[%clk 0:01:51]} 24. b3 {[%clk 0:02:18]}  d3 {[%clk 0:01:45]} 25. cxd3 {[%clk 0:02:17]}  Rad8 {[%clk 0:01:46]} 26. d4 {[%clk 0:02:11]}  exd4 {[%clk 0:01:44]} 27. e5 {[%clk 0:02:07]}  fxe5 {[%clk 0:01:41]} 28. Ng5 {[%clk 0:02:06]}  e4 {[%clk 0:01:34]} 29. Ndxe4 {[%clk 0:02:03]}  Bxe1 {[%clk 0:01:30]} 30. Rxe1 {[%clk 0:02:03]}  d3 {[%clk 0:01:24]} 31. Qf2 {[%clk 0:01:58]}  Nxb3 {[%clk 0:01:10]} 32. Nxf7 {[%clk 0:01:48]}  Qxf7 {[%clk 0:01:08]} 33. Ng5 {[%clk 0:01:47]}  Rxe1+ {[%clk 0:01:00]} 34. Qxe1 {[%clk 0:01:47]}  d2 {[%clk 0:01:01]} 0-1


[Site "https://www.chess.com"]

[Event "Titled Tuesday Blitz October 19 2021"]
[White "Praggnanandhaa R"]
[Black "Tang, Andrew"]
[WhiteFideId "25059530"]
[BlackFideId "2059630"]
[WhiteElo "2599"]
[BlackElo "2588"]
[Result "1/2-1/2"]
[Round "06"]
[TimeControl "180+1"]
[Date "2021.10.19"]
[WhiteClock "0:00:00"]
[BlackClock "0:00:05"]

1. d4 {[%clk 0:03:00]}  d5 {[%clk 0:02:57]} 2. c4 {[%clk 0:03:00]}  e6 {[%clk 0:02:58]} 3. Nc3 {[%clk 0:03:00]}  Be7 {[%clk 0:02:56]} 4. Nf3 {[%clk 0:02:58]}  Nf6 {[%clk 0:02:56]} 5. Bg5 {[%clk 0:02:56]}  h6 {[%clk 0:02:55]} 6. Bh4 {[%clk 0:02:54]}  O-O {[%clk 0:02:55]} 7. e3 {[%clk 0:02:54]}  b6 {[%clk 0:02:55]} 8. Rc1 {[%clk 0:02:50]}  Bb7 {[%clk 0:02:48]} 9. Bxf6 {[%clk 0:02:50]}  Bxf6 {[%clk 0:02:48]} 10. cxd5 {[%clk 0:02:50]}  exd5 {[%clk 0:02:48]} 11. b4 {[%clk 0:02:48]}  c6 {[%clk 0:02:45]} 12. Bd3 {[%clk 0:02:46]}  Qe7 {[%clk 0:02:38]} 13. Qb3 {[%clk 0:02:33]}  Rd8 {[%clk 0:02:01]} 14. O-O {[%clk 0:02:31]}  Nd7 {[%clk 0:01:53]} 15. Rfe1 {[%clk 0:02:19]}  Nf8 {[%clk 0:01:27]} 16. e4 {[%clk 0:01:42]}  Ne6 {[%clk 0:01:00]} 17. e5 {[%clk 0:01:33]}  Bg5 {[%clk 0:01:00]} 18. Rcd1 {[%clk 0:01:30]}  h5 {[%clk 0:00:19]} 19. Bb1 {[%clk 0:01:21]}  Bh6 {[%clk 0:00:19]} 20. b5 {[%clk 0:01:09]}  c5 {[%clk 0:00:18]} 21. dxc5 {[%clk 0:01:08]}  Qxc5 {[%clk 0:00:19]} 22. Ne2 {[%clk 0:00:40]}  d4 {[%clk 0:00:16]} 23. Nexd4 {[%clk 0:00:35]}  Nxd4 {[%clk 0:00:13]} 24. Nxd4 {[%clk 0:00:32]}  Rxd4 {[%clk 0:00:13]} 25. e6 {[%clk 0:00:29]}  Rxd1 {[%clk 0:00:11]} 26. Rxd1 {[%clk 0:00:28]}  Qg5 {[%clk 0:00:08]} 27. exf7+ {[%clk 0:00:25]}  Kf8 {[%clk 0:00:07]} 28. g3 {[%clk 0:00:22]}  Qc5 {[%clk 0:00:04]} 29. Bg6 {[%clk 0:00:18]}  Bg5 {[%clk 0:00:03]} 30. Qe6 {[%clk 0:00:13]}  Be7 {[%clk 0:00:03]} 31. Be4 {[%clk 0:00:05]}  Bxe4 {[%clk 0:00:03]} 32. Qxe4 {[%clk 0:00:06]}  Rc8 {[%clk 0:00:03]} 33. Qe6 {[%clk 0:00:05]}  Qc7 {[%clk 0:00:02]} 34. Rd7 {[%clk 0:00:04]}  Qc1+ {[%clk 0:00:02]} 35. Kg2 {[%clk 0:00:05]}  Qc5 {[%clk 0:00:02]} 36. Rxe7 {[%clk 0:00:05]}  Qxe7 {[%clk 0:00:03]} 37. Qxc8+ {[%clk 0:00:05]}  Kxf7 {[%clk 0:00:03]} 38. Qf5+ {[%clk 0:00:06]}  Kg8 {[%clk 0:00:04]} 39. Qxh5 {[%clk 0:00:06]}  Qe6 {[%clk 0:00:04]} 40. a4 {[%clk 0:00:06]}  Qc4 {[%clk 0:00:05]} 41. Qe8+ {[%clk 0:00:06]}  Kh7 {[%clk 0:00:05]} 42. Qh5+ {[%clk 0:00:06]}  Kg8 {[%clk 0:00:06]} 43. Qd1 {[%clk 0:00:04]}  Kh8 {[%clk 0:00:05]} 44. h4 {[%clk 0:00:03]}  Qe4+ {[%clk 0:00:06]} 45. Kg1 {[%clk 0:00:04]}  Qc4 {[%clk 0:00:06]} 46. h5 {[%clk 0:00:03]}  Kh7 {[%clk 0:00:06]} 47. Qb1+ {[%clk 0:00:03]}  Kh8 {[%clk 0:00:05]} 48. Qd1 {[%clk 0:00:03]}  Kh7 {[%clk 0:00:06]} 49. Kg2 {[%clk 0:00:03]}  Kh6 {[%clk 0:00:06]} 50. g4 {[%clk 0:00:03]}  Kg5 {[%clk 0:00:06]} 51. f3 {[%clk 0:00:01]}  Kh6 {[%clk 0:00:04]} 52. Qd2+ {[%clk 0:00:01]}  Kh7 {[%clk 0:00:05]} 53. Qd1 {[%clk 0:00:01]}  Kh6 {[%clk 0:00:05]} 54. Kg3 {[%clk 0:00:02]}  Qc7+ {[%clk 0:00:05]} 55. Kg2 {[%clk 0:00:00]}  Qc4 {[%clk 0:00:05]} 1/2-1/2


[Site "https://www.chess.com"]

[Event "Titled Tuesday Blitz October 19 2021"]
[White "Salinas Herrera, Pablo"]
[Black "Langrock, Hannes"]
[WhiteFideId "3407128"]
[BlackFideId "4655290"]
[WhiteElo "2541"]
[BlackElo "2325"]
[Result "0-1"]
[Round "06"]
[TimeControl "180+1"]
[Date "2021.10.19"]
[WhiteClock "0:00:05"]
[BlackClock "0:00:24"]

1. e4 {[%clk 0:03:00]}  c5 {[%clk 0:02:59]} 2. Nf3 {[%clk 0:02:55]}  e6 {[%clk 0:02:59]} 3. d4 {[%clk 0:02:55]}  cxd4 {[%clk 0:02:59]} 4. Nxd4 {[%clk 0:02:56]}  Nf6 {[%clk 0:02:59]} 5. Nc3 {[%clk 0:02:56]}  Nc6 {[%clk 0:02:59]} 6. Ndb5 {[%clk 0:02:53]}  Bc5 {[%clk 0:02:59]} 7. Bf4 {[%clk 0:01:57]}  O-O {[%clk 0:02:58]} 8. Bc7 {[%clk 0:01:55]}  Qe7 {[%clk 0:02:58]} 9. Bd6 {[%clk 0:01:56]}  Bxd6 {[%clk 0:02:59]} 10. Qxd6 {[%clk 0:01:56]}  Qd8 {[%clk 0:02:59]} 11. O-O-O {[%clk 0:01:50]}  a6 {[%clk 0:02:55]} 12. Nd4 {[%clk 0:01:45]}  Ne7 {[%clk 0:02:54]} 13. f3 {[%clk 0:01:31]}  b5 {[%clk 0:02:48]} 14. Nb3 {[%clk 0:01:31]}  Bb7 {[%clk 0:02:41]} 15. h4 {[%clk 0:01:13]}  Nc8 {[%clk 0:02:36]} 16. Qb4 {[%clk 0:01:07]}  a5 {[%clk 0:02:01]} 17. Qxb5 {[%clk 0:01:06]}  Bc6 {[%clk 0:01:42]} 18. Qc5 {[%clk 0:00:57]}  a4 {[%clk 0:01:23]} 19. Nd4 {[%clk 0:00:58]}  Qc7 {[%clk 0:01:17]} 20. Nxc6 {[%clk 0:00:50]}  dxc6 {[%clk 0:01:15]} 21. Bb5 {[%clk 0:00:51]}  Qf4+ {[%clk 0:01:13]} 22. Kb1 {[%clk 0:00:48]}  cxb5 {[%clk 0:01:13]} 23. Nxb5 {[%clk 0:00:49]}  Rb8 {[%clk 0:01:07]} 24. Nc3 {[%clk 0:00:47]}  Nb6 {[%clk 0:01:02]} 25. Qg5 {[%clk 0:00:39]}  Qc7 {[%clk 0:00:57]} 26. Rd3 {[%clk 0:00:33]}  Nc4 {[%clk 0:00:54]} 27. Nxa4 {[%clk 0:00:29]}  Rb4 {[%clk 0:00:39]} 28. Qc5 {[%clk 0:00:09]}  Rxb2+ {[%clk 0:00:34]} 29. Ka1 {[%clk 0:00:08]}  Qxc5 {[%clk 0:00:27]} 30. Nxc5 {[%clk 0:00:09]}  Rxc2 {[%clk 0:00:27]} 31. g4 {[%clk 0:00:05]}  Ra8 {[%clk 0:00:25]} 32. a4 {[%clk 0:00:05]}  Ne5 {[%clk 0:00:24]} 0-1


[Site "https://www.chess.com"]

[Event "Titled Tuesday Blitz October 19 2021"]
[White "Sjugirov, Sanan"]
[Black "Bekturov, Tamerlan"]
[WhiteFideId "4189302"]
[BlackFideId "13710184"]
[WhiteElo "2654"]
[BlackElo "2186"]
[Result "1-0"]
[Round "06"]
[TimeControl "180+1"]
[Date "2021.10.19"]
[WhiteClock "0:01:45"]
[BlackClock "0:00:14"]

1. d4 {[%clk 0:03:00]}  Nf6 {[%clk 0:02:58]} 2. c4 {[%clk 0:03:01]}  e6 {[%clk 0:02:58]} 3. Nc3 {[%clk 0:03:02]}  d5 {[%clk 0:02:55]} 4. cxd5 {[%clk 0:03:01]}  exd5 {[%clk 0:02:56]} 5. Bg5 {[%clk 0:03:01]}  c6 {[%clk 0:02:56]} 6. e3 {[%clk 0:03:01]}  Bd6 {[%clk 0:02:55]} 7. Bd3 {[%clk 0:03:02]}  Be6 {[%clk 0:02:55]} 8. Nge2 {[%clk 0:03:00]}  Nbd7 {[%clk 0:02:56]} 9. Nf4 {[%clk 0:02:51]}  Qc7 {[%clk 0:02:56]} 10. Nxe6 {[%clk 0:02:49]}  fxe6 {[%clk 0:02:57]} 11. f4 {[%clk 0:02:38]}  O-O-O {[%clk 0:02:56]} 12. O-O {[%clk 0:02:33]}  h6 {[%clk 0:02:55]} 13. Bxf6 {[%clk 0:02:28]}  gxf6 {[%clk 0:02:46]} 14. Nb5 {[%clk 0:02:22]}  Qb8 {[%clk 0:02:42]} 15. Rc1 {[%clk 0:02:19]}  a6 {[%clk 0:02:35]} 16. Nxd6+ {[%clk 0:02:16]}  Qxd6 {[%clk 0:02:35]} 17. Qa4 {[%clk 0:02:07]}  Nb8 {[%clk 0:02:06]} 18. b4 {[%clk 0:02:07]}  Kd7 {[%clk 0:02:04]} 19. Qa5 {[%clk 0:01:59]}  Qc7 {[%clk 0:01:51]} 20. Qc5 {[%clk 0:01:59]}  f5 {[%clk 0:01:37]} 21. a4 {[%clk 0:01:58]}  b6 {[%clk 0:01:27]} 22. Qc2 {[%clk 0:01:56]}  Rc8 {[%clk 0:01:27]} 23. Qe2 {[%clk 0:01:55]}  Qb7 {[%clk 0:01:03]} 24. Qh5 {[%clk 0:01:54]}  Kd6 {[%clk 0:01:00]} 25. b5 {[%clk 0:01:47]}  axb5 {[%clk 0:00:57]} 26. axb5 {[%clk 0:01:48]}  c5 {[%clk 0:00:58]} 27. Bxf5 {[%clk 0:01:47]}  exf5 {[%clk 0:00:50]} 28. Qg6+ {[%clk 0:01:47]}  Kc7 {[%clk 0:00:48]} 29. dxc5 {[%clk 0:01:46]}  Rcg8 {[%clk 0:00:14]} 30. Qd6+ {[%clk 0:01:45]} 1-0


[Site "https://www.chess.com"]

[Event "Titled Tuesday Blitz October 19 2021"]
[White "Vallejo Diaz, Javier"]
[Black "Shtembuliak, Evgeny"]
[WhiteFideId "2256398"]
[BlackFideId "14113325"]
[WhiteElo "2628"]
[BlackElo "2504"]
[Result "1-0"]
[Round "06"]
[TimeControl "180+1"]
[Date "2021.10.19"]
[WhiteClock "0:00:45"]
[BlackClock "0:00:30"]

1. e4 {[%clk 0:03:00]}  e5 {[%clk 0:02:59]} 2. Nf3 {[%clk 0:03:00]}  Nc6 {[%clk 0:03:00]} 3. Bb5 {[%clk 0:03:00]}  Nge7 {[%clk 0:03:00]} 4. c3 {[%clk 0:02:51]}  d5 {[%clk 0:02:59]} 5. d4 {[%clk 0:02:34]}  a6 {[%clk 0:02:09]} 6. Ba4 {[%clk 0:02:19]}  b5 {[%clk 0:02:08]} 7. Bc2 {[%clk 0:02:15]}  exd4 {[%clk 0:02:04]} 8. Nxd4 {[%clk 0:02:14]}  Nxd4 {[%clk 0:01:54]} 9. Qxd4 {[%clk 0:02:13]}  Bb7 {[%clk 0:01:55]} 10. exd5 {[%clk 0:02:12]}  Qxd5 {[%clk 0:01:54]} 11. Qxd5 {[%clk 0:02:11]}  Bxd5 {[%clk 0:01:52]} 12. O-O {[%clk 0:02:10]}  f6 {[%clk 0:01:53]} 13. Bf4 {[%clk 0:02:10]}  O-O-O {[%clk 0:01:49]} 14. a4 {[%clk 0:02:08]}  Ng6 {[%clk 0:01:48]} 15. Be3 {[%clk 0:02:05]}  b4 {[%clk 0:01:40]} 16. cxb4 {[%clk 0:02:05]}  Bxb4 {[%clk 0:01:40]} 17. Nc3 {[%clk 0:02:04]}  Bc4 {[%clk 0:01:40]} 18. Rfc1 {[%clk 0:02:00]}  Kb8 {[%clk 0:01:36]} 19. Ne4 {[%clk 0:01:41]}  Ne5 {[%clk 0:01:35]} 20. Nc5 {[%clk 0:01:29]}  Ng4 {[%clk 0:01:09]} 21. Be4 {[%clk 0:01:01]}  Nxe3 {[%clk 0:01:08]} 22. fxe3 {[%clk 0:01:01]}  Bxc5 {[%clk 0:01:02]} 23. Rxc4 {[%clk 0:01:01]}  Bxe3+ {[%clk 0:01:02]} 24. Kh1 {[%clk 0:01:01]}  a5 {[%clk 0:00:59]} 25. b4 {[%clk 0:00:59]}  Rd4 {[%clk 0:00:38]} 26. Rxd4 {[%clk 0:00:48]}  Bxd4 {[%clk 0:00:39]} 27. Rd1 {[%clk 0:00:48]}  Bc3 {[%clk 0:00:34]} 28. bxa5 {[%clk 0:00:48]}  Bxa5 {[%clk 0:00:35]} 29. Rb1+ {[%clk 0:00:46]}  Kc8 {[%clk 0:00:35]} 30. Bf5+ {[%clk 0:00:45]}  Kd8 {[%clk 0:00:30]} 31. Rb8+ {[%clk 0:00:45]} 1-0


[Site "https://www.chess.com"]